Cogmind - Beta 16 @@@ ROGUE MODE // 2025.11.03 @ 04:12:02 Player: pappous Result: Destroyed by L-41 Fighter with Axe Performance ------------- Evolutions (3) 1500 Regions Visited (9) 1800 Robots Destroyed (211) 1055 Value Destroyed (9000) 9000 Prototype IDs (8) 160 Alien Tech Used (0) 0 Bonus (5849) 5849 TOTAL SCORE: 19364 Bonus ------- Triggered High Security 500 High Alert Combat Kills 2357 Follower Combat Kills 486 Entered Garrisons 600 Used RIF Installer 2000 Friendly Fire -94 Cogmind --------- Core Integrity 0/700 Matter 22/300 Energy 79/100 System Corruption 13% Temperature Cool (1) Movement Core (900) Ox17 Location -7/Factory Parts ------- > --- POWER (1) -------- (None) > --- PROPULSION (3) --- (None) > --- UTILITY (6) ------ High-capacity Storage Unit Improved Signal Interpreter Relay Coupler [Grunt] (1) Relay Coupler [Sentry] (24) Relay Coupler [Heavy] (13) > --- WEAPON (3) ------- Neutron Cannon Remote Datajack > --- INVENTORY (20) --- Coolant Injector Improved Sensor Array Advanced Signal Interpreter Core Analyzer Kinecellerator Weapon Cycler Improved Utility Shielding Improved Light Armor Plating Hardlight Generator Authchip [R/Combat] Authchip [R/Combat] Relay Coupler [NC] (31) Relay Coupler [NC] (22) Peak State ------------ > --- POWER ------------ Light Angular Momentum Engine > --- PROPULSION ------- Light Treads Wheel Wheel > --- UTILITY ---------- Improved Heat Sink Coolant Injector High-capacity Storage Unit Improved Sensor Array Improved Signal Interpreter Relay Coupler [Grunt] > --- WEAPON ----------- Neutron Cannon Gauss Rifle Heavy Machine Gun > --- INVENTORY -------- Ion Engine Coolant Injector Advanced Signal Interpreter Core Analyzer Kinecellerator Weapon Cycler Improved Utility Shielding Hardlight Generator Authchip [R/Combat] Authchip [R/Combat] Relay Coupler [NC] Relay Coupler [NC] Relay Coupler [Grunt] Relay Coupler [Sentry] Relay Coupler [Heavy] Gatling Laser Neutron Cannon Heavy Rocket Launcher Remote Datajack [Rating: 48] Favorites ----------- Power Heavy Ion Engine Engine Heavy Ion Engine Power Core Light Nuclear Core Propulsion Light Treads Treads Light Treads Wheel Wheel Utility Signal Interpreter Device Sensor Array Storage Large Storage Unit Processor Signal Interpreter Hackware Relay Coupler [Grunt] Protection Light Armor Plating Weapon Gauss Rifle Energy Gun Improved Medium Laser Energy Cannon Ion Cannon Ballistic Gun Gauss Rifle Ballistic Cannon Improved Light Cannon Launcher Mini Grenade Launcher Special Weapon Remote Datajack Impact Weapon Great Maul Build | -11 -10 -9 -9 -9 -8 -8 -8 -8 -7 ------- Run | Yrd Mat Mat Sto Gar Mat Gar Mat Gar Fac Slots Evolved 6 | . . 2 . . 2 . . . 2 Power . | . . . . . . . . . . Propulsion 1 | . . . . . 1 . . . . Utility 4 | . . 2 . . 1 . . . 1 Weapon 1 | . . . . . . . . . 1 Parts Attached 119 | 6 7 22 14 3 11 3 . 18 35 Power 12 | 1 . 3 1 . . . . 2 5 Engine 11 | 1 . 3 1 . . . . 2 4 Core 1 | . . . . . . . . . 1 Reactor . | . . . . . . . . . . Propulsion 34 | 2 . 8 3 1 2 2 . 8 8 Treads 29 | 1 . 8 3 1 2 2 . 8 4 Leg . | . . . . . . . . . . Wheel 5 | 1 . . . . . . . . 4 Hover . | . . . . . . . . . . Flight . | . . . . . . . . . . Utility 39 | 1 3 7 2 1 7 . . 5 13 Device 13 | . . 4 1 . 1 . . 2 5 Storage 7 | 1 1 1 . . 3 . . . 1 Processor 6 | . 2 . . . 2 . . . 2 Hackware 5 | . . . . . . . . 2 3 Protection 8 | . . 2 1 1 1 . . 1 2 Artifact . | . . . . . . . . . . Weapon 34 | 2 4 4 8 1 2 1 . 3 9 Energy Gun 4 | . 1 1 1 . . . . . 1 Energy Cannon 6 | . . . . 1 1 . . 1 3 Ballistic Gun 12 | 2 1 2 1 . 1 1 . 2 2 Ballistic Cannon 4 | . . . 4 . . . . . . Launcher 5 | . 1 1 1 . . . . . 2 Special Weapon 2 | . 1 . . . . . . . 1 Impact Weapon 1 | . . . 1 . . . . . . Slashing Weapon . | . . . . . . . . . . Piercing Weapon . | . . . . . . . . . . Special Melee Weapon . | . . . . . . . . . . Unidentified Prototypes 5 | . 1 1 2 . . . . . 1 Parts Lost 44 | . . 4 2 1 2 3 . 6 26 Power 6 | . . . 1 . . . . 1 4 Propulsion 16 | . . 2 1 . 1 1 . 2 9 Utility 12 | . . 1 . 1 1 2 . 2 5 Weapon 10 | . . 1 . . . . . 1 8 Highest Loss Streak 5 | . . 1 1 1 1 3 . 2 5 To Critical Strikes 1 | . . . . . . . . . 1 Average Backups 16 | 1 7 14 14 15 15 19 20 19 19 Power 1 | . . 1 . 1 1 1 1 1 . Propulsion 2 | 1 2 3 4 3 1 2 2 1 . Utility 8 | . 2 6 6 7 7 10 12 11 13 Weapon 3 | . 2 3 3 3 5 5 5 4 3 Tool/Special . | . . . . . . . . . . Unused Backups 28 | . 4 5 1 1 1 1 . 3 12 Power 2 | . . 1 . . 1 . . . . Propulsion 3 | . . 1 . 1 . . . 1 . Utility 19 | . 2 3 . . . . . 2 12 Weapon 4 | . 2 . 1 . . 1 . . . Tool/Special . | . . . . . . . . . . Average Slot Usage (%) 95 | . 99 97 96 95 97 91 81 96 86 Engine 9 | . 14 10 10 11 9 9 9 8 5 Treads 21 | . 14 20 19 22 26 26 27 25 13 Wheel 1 | . 14 1 . . . . . . 4 Device 9 | . . 11 16 7 8 4 . 6 14 Storage 9 | . 14 11 11 11 9 9 9 9 7 Processor 12 | . 13 11 11 11 18 18 18 15 7 Hackware 2 | . . . . . . . . 7 8 Protection 5 | . . 8 5 11 6 4 . 4 2 Energy Gun 3 | . 7 10 . . . . . . 2 Energy Cannon 4 | . . . . 10 8 8 9 8 2 Ballistic Gun 8 | . 19 10 1 . 7 9 9 9 12 Ballistic Cannon 2 | . . . 9 8 1 . . . . Impact Weapon 1 | . . . 10 . . . . . . Peak Build Rating 48 | 6 10 17 19 18 26 25 23 31 48 Average Rating 22 | 4 8 14 17 17 23 23 23 28 38 On Entrance 16 | . 6 10 17 17 17 25 23 23 30 Avg Prop Armor Cover (%) 8 | 5 8 9 . . . . . . 7 Naked Turns . | . . . . . . . . . . Heaviest Build 80 | 11 18 42 43 40 66 66 58 71 80 Greatest Support 63 | 20 20 40 43 43 63 63 63 63 60 Greatest Overweight (x) 17 | . 1 3 2 . 1 1 . 1 17 Average Overweight (x) . | . . . . . . . . . 2 Largest Inventory Capacity 20 | 8 10 15 15 15 20 20 20 20 20 Average Capacity 16 | 7 8 14 15 15 16 20 20 20 20 Most Carried 20 | 2 9 15 15 15 20 20 20 20 20 Average Carried 16 | 1 7 14 14 14 15 19 20 19 19 Final Capacity 20 | 8 10 15 15 15 20 20 20 20 20 Final Carried 20 | 2 9 15 15 15 20 20 20 20 13 Class Distribution -------------------- 56% | Mutant 13% | Scavenger-Mutant 12% | Bothacker-Mutant 9% | Bothacker-Skirmisher 5% | Commander-Mutant Dominant Class ---------------- Mutant | -10/Materials Scavenger-Mutant | -9/Materials Mutant | -9/Storage Mutant | -9/Garrison Mutant | -8/Materials Mutant | -8/Garrison Mutant | -8/Materials Bothacker-Mutant | -8/Garrison Bothacker-Skirmisher | -7/Factory Resources | -11 -10 -9 -9 -9 -8 -8 -8 -8 -7 ----------- Run | Yrd Mat Mat Sto Gar Mat Gar Mat Gar Fac Matter Collected 4127 | 203 297 548 302 374 367 116 . 762 1158 Remotely . | . . . . . . . . . . Salvage Created 6701 | . 450 1523 626 306 552 458 . 1035 1751 Parts 413 | . 35 113 28 24 30 21 . 68 94 Haulers Intercepted 3 | . . 1 1 . . . . . 1 Recyclers Shooed 2 | . . 1 . . . . . . 1 Parts Field Recycled . | . . . . . . . . . . Retrieved Matter . | . . . . . . . . . . Parts Self-Destructed . | . . . . . . . . . . Prevented . | . . . . . . . . . . Parts Restored . | . . . . . . . . . . Kills | -11 -10 -9 -9 -9 -8 -8 -8 -8 -7 ------- Run | Yrd Mat Mat Sto Gar Mat Gar Mat Gar Fac Combat Hostiles Destroyed 180 | . 14 36 16 17 14 12 . 28 43 Melee 3 | . . . 3 . . . . . . Guns 68 | . 11 29 1 . 1 . . 7 19 Cannons 49 | . . . 4 8 5 7 . 13 12 AOE 58 | . 3 7 6 9 8 5 . 8 12 Classes Destroyed 16 | . 5 3 . 1 1 1 . 3 2 Worker 9 | . . 3 2 . . . . . 4 Builder 7 | . 1 . 2 . . . . . 4 Hauler 3 | . . 1 1 . . . . . 1 Recycler 7 | . 1 2 1 . 2 . . . 1 Mechanic 3 | . . . . . . . . . 3 Watcher 1 | . 1 . . . . . . . . Swarmer 46 | . 9 11 4 9 4 2 . 3 4 Cutter 3 | . . . . . . . . 3 . Grunt 83 | . 5 15 4 5 6 8 . 13 27 Brawler 4 | . . . . . 1 . . 1 2 Duelist 4 | . . . . 1 . . . . 3 Protector 2 | . . . . . . . . . 2 Sentry 29 | . . 10 8 2 3 1 . 4 1 Specialist 1 | . . . . . . . . 1 . Hunter 1 | . . . . . . 1 . . . Programmer 8 | . . . . . . . . 4 4 Best Kill Streak 11 | . 4 6 11 6 9 3 . 7 9 Combat Bots Only 9 | . 3 6 6 6 9 3 . 7 6 Max Kills in Single Turn 6 | . 3 4 6 2 3 2 . 2 4 Gunslinging . | . . . . . . . . . . Exploded 4 | . 3 4 4 2 3 2 . 2 2 Melee 1 | . . . 1 . . . . . . Uniques/NPCs Destroyed . | . . . . . . . . . . Combat | -11 -10 -9 -9 -9 -8 -8 -8 -8 -7 -------- Run | Yrd Mat Mat Sto Gar Mat Gar Mat Gar Fac Hostile Shots Fired 783 | . 46 141 69 44 22 62 . 125 274 Missed 238 | . 15 37 24 14 7 12 . 40 89 Hits 545 | . 31 104 45 30 15 50 . 85 185 Melee 18 | . . . . . . . . 1 17 Projectile 527 | . 31 104 45 30 15 50 . 84 168 AOE 2 | . . . . . . . . 2 . Critical Strikes 22 | . 1 . 1 . . 1 . 4 15 Damage Taken 8718 | . 280 1270 742 291 270 684 . 1563 3618 Core 1562 | . 34 182 159 30 12 157 . 278 710 Absorbed by Shields . | . . . . . . . . . . Core Remaining (%) 52 | 100 86 . . 7 . . . 18 . Volleys Fired 501 | . 37 98 29 56 26 32 . 77 146 Largest 3 | . 2 2 2 2 2 2 . 2 3 Hottest 198 | . 100 156 86 101 101 90 . 115 198 Shots Fired 930 | . 65 188 34 89 40 55 . 144 315 Gun 575 | . 63 182 3 . 2 21 . 67 237 Cannon 280 | . . . 25 78 29 29 . 61 58 Launcher 69 | . 1 4 6 11 9 5 . 16 17 Special 6 | . 1 2 . . . . . . 3 Kinetic 506 | . 60 88 25 34 14 21 . 67 197 Thermal 352 | . 4 96 3 44 17 29 . 61 98 Explosive 69 | . 1 4 6 11 9 5 . 16 17 Electromagnetic . | . . . . . . . . . . Robot Hit Streak 22 | . 6 14 20 22 9 11 . 9 16 Robot Miss Streak 7 | . 3 3 1 3 1 3 . 4 7 Penetration Max 1 | . . . . . . . . 1 1 Secondary Targets 7 | . 2 3 . . . . . . 2 Max Gunslinging Chain 1 | . 1 1 . . . . . . 1 Shots Hit Robots 517 | . 35 129 39 21 14 23 . 68 188 Core Hits 357 | . 21 63 22 18 28 20 . 55 130 Critical Kills 2 | . . . . . . . . 1 1 Critical Parts Destroyed 11 | . . 1 7 . . . . 1 2 Critical Strikes 20 | . . 7 8 . . . . 2 3 Burn 7 | . . 6 1 . . . . . . Destroy 6 | . . 1 . . . . . 2 3 Smash 7 | . . . 7 . . . . . . Melee Attacks 43 | . . . 43 . . . . . . Impact 43 | . . . 43 . . . . . . Slashing . | . . . . . . . . . . Piercing . | . . . . . . . . . . Sneak Attacks 2 | . . . 2 . . . . . . Combat Hostiles . | . . . . . . . . . . Follow-up Attacks . | . . . . . . . . . . Damage Inflicted 18475 | . 556 2345 1770 949 1143 831 . 2767 8114 Guns 6821 | . 424 1991 44 . 22 181 . 695 3464 Cannons 3547 | . . . 343 350 234 323 . 1033 1264 Explosions 7319 | . 132 354 613 599 887 327 . 1039 3368 Melee 770 | . . . 770 . . . . . . Ramming 18 | . . . . . . . . . 18 Kinetic 5299 | . 390 844 343 186 42 181 . 695 2618 Thermal 6090 | . 34 1147 44 164 214 323 . 1033 3131 Explosive 6241 | . 132 354 613 599 830 327 . 1039 2347 Electromagnetic 57 | . . . . . 57 . . . . Impact 770 | . . . 770 . . . . . . Slashing . | . . . . . . . . . . Piercing . | . . . . . . . . . . Highest Corruption 13 | . . . 1 1 . . . 4 13 Average Corruption 1 | . . . 1 1 . . . 2 3 Corruption Purged . | . . . . . . . . . . Corruption Blocked . | . . . . . . . . . . Effects 76 | . . . 11 12 . . . 26 27 Message Errors 21 | . . . 3 4 . . . 7 7 Matter Fused 19 | . . . 3 2 . . . 9 5 Heat Flow Errors 9 | . . . 1 1 . . . 4 3 Energy Discharges 4 | . . . 1 . . . . 1 2 Parts Rejected 3 | . . . . . . . . 1 2 Parts Fused 2 | . . . . 1 . . . . 1 Data Loss (minor) 8 | . . . 1 1 . . . 1 5 Data Loss (major) 3 | . . . . 1 . . . 1 1 Misfires 5 | . . . 2 . . . . 2 1 Alerts 1 | . . . . 1 . . . . . Weapon Failures 1 | . . . . 1 . . . . . Overload Shots . | . . . . . . . . . . Overflow Damage 992 | . 20 . 349 121 20 17 . 47 418 Projectiles 13 | . . . . 1 . 4 . 2 6 Explosions 644 | . 20 . 14 120 20 13 . 45 412 Melee 335 | . . . 335 . . . . . . Knockbacks 2 | . . . 1 1 . . . . . Impact 1 | . . . 1 . . . . . . Kinetic 1 | . . . . 1 . . . . . Secondary . | . . . . . . . . . . Self-Inflicted Damage 968 | . . . . 10 60 41 . 188 669 Shots 22 | . . . . 1 2 1 . 5 13 Rammed 6 | . . . . . . . . . 6 Targets Rammed 6 | . . . . . . . . . 6 Kicked . | . . . . . . . . . . Crushed . | . . . . . . . . . . Highest Temperature 450 | . 54 145 135 234 186 207 . 372 450 Average Temperature 77 | . 17 37 61 61 65 55 . 105 92 Received Heat Transfer 2727 | . 75 456 210 78 81 225 . 612 990 Effects 7 | . . . . . . . . 5 2 Shutdowns 1 | . . . . . . . . . 1 Energy Bleed 3 | . . . . . . . . 2 1 Interference 3 | . . . . . . . . 3 . Siege Activations . | . . . . . . . . . . Martial Activations . | . . . . . . . . . . Shielding Activations . | . . . . . . . . . . Robots Disrupted . | . . . . . . . . . . Combat Hostiles . | . . . . . . . . . . Robots Corrupted 3 | . . . 3 . . . . . . Combat Hostiles 2 | . . . 2 . . . . . . Parts Fried 9 | . . . 9 . . . . . . Impact Corruptions 11 | . . . 11 . . . . . . Robots Melted . | . . . . . . . . . . Combat Hostiles . | . . . . . . . . . . Parts Melted 14 | . . 6 . 1 . . . 1 6 Heat Transferred 8389 | . 74 3034 185 258 370 518 . 1258 2692 Parts Sabotaged . | . . . . . . . . . . Parts Stolen . | . . . . . . . . . . Parts Stripped . | . . . . . . . . . . Power Chain Reactions 2 | . . . . . . . . . 2 Alert | -11 -10 -9 -9 -9 -8 -8 -8 -8 -7 ------- Run | Yrd Mat Mat Sto Gar Mat Gar Mat Gar Fac Maximum Alert Level 5 | . . 2 1 4 3 2 1 5 5 Low Security (%) 17 | 100 100 33 17 3 . . . . . Level 1 23 | . . 53 82 14 . 14 100 8 . Level 2 25 | . . 12 . 39 56 85 . 33 . Level 3 20 | . . . . 40 43 . . 14 59 Level 4 10 | . . . . 2 . . . 34 29 Level 5 1 | . . . . . . . . 9 1 High Security 1 | . . . . . . . . . 9 Max Security . | . . . . . . . . . . Peak Influence 1806 | . 105 424 369 1147 865 695 338 1806 1701 Initial 947 | . . 22 162 148 559 334 338 213 947 Average 585 | . 42 243 256 678 670 508 334 939 1090 Influence Increases 7622 | . 401 1061 756 1129 497 391 . 1693 1694 Destroy 0b10 Robot/C 3980 | . 280 720 400 520 280 260 . 620 900 Destroy 0b10 Robot/NC 165 | . 15 30 35 . 10 . . . 75 Destroy Leader 660 | . 52 202 134 20 60 10 . 40 142 Allied During Kill 121 | . . . 40 60 . 4 . 8 9 Successful Hack 85 | . 30 16 14 16 9 . . . . Disable Machine 510 | . 15 45 60 . 60 60 . 30 240 Anti-Garrison Action 1150 | . . . . 400 . 50 . 700 . Destroy Structure 561 | . 9 18 43 113 63 7 . 115 193 Partial Spotted 15 | . . . . . . . . 15 . Lose Combat Pursuer 375 | . . 30 30 . 15 . . 165 135 Influence Decreases 5953 | . 348 729 913 210 1130 210 367 215 1831 Entered New Map 2433 | . . 31 223 80 588 180 357 115 859 Time Decay 2680 | . 348 658 550 . 522 . 10 . 592 Lost Part 440 | . . 40 20 10 20 30 . 60 260 Lost Ally 400 | . . . 120 120 . . . 40 120 Squads Dispatched 32 | . 2 5 2 . 3 . . . 20 Investigation 4 | . 1 2 . . 1 . . . . Extermination 3 | . . . . . . . . . 3 Reinforcement 12 | . 1 3 2 . 2 . . . 4 Assault 13 | . . . . . . . . . 13 Garrison . | . . . . . . . . . . Intercept . | . . . . . . . . . . Searches Triggered . | . . . . . . . . . . Construction Impeded 2 | . . . . . . . . . 2 Haulers Reinforced . | . . . . . . . . . . Active Scanning Responses . | . . . . . . . . . . Cargo Convoy Interrupts . | . . . . . . . . . . Stealth | -11 -10 -9 -9 -9 -8 -8 -8 -8 -7 --------- Run | Yrd Mat Mat Sto Gar Mat Gar Mat Gar Fac Distress Signals 12 | . 3 4 3 . 2 . . . . Communications Jammed . | . . . . . . . . . . Distress Signals . | . . . . . . . . . . Times Spotted 274 | . 25 55 23 17 17 14 . 33 90 Peak Tracking Total 7 | . 4 5 6 6 6 4 . 3 7 Tactical Retreats 21 | . . 2 2 . 1 . . 10 6 Traps | -11 -10 -9 -9 -9 -8 -8 -8 -8 -7 ------- Run | Yrd Mat Mat Sto Gar Mat Gar Mat Gar Fac Traps Triggered 23 | . 2 2 1 2 1 8 . 6 1 Indirectly . | . . . . . . . . . . Trap Hack Attempts . | . . . . . . . . . . Triggered . | . . . . . . . . . . Disarmed . | . . . . . . . . . . Reprogrammed . | . . . . . . . . . . Reused . | . . . . . . . . . . Traps Extracted . | . . . . . . . . . . Installed . | . . . . . . . . . . Triggered . | . . . . . . . . . . Machines | -11 -10 -9 -9 -9 -8 -8 -8 -8 -7 ---------- Run | Yrd Mat Mat Sto Gar Mat Gar Mat Gar Fac Machines Disabled 45 | . 1 3 4 4 4 4 . 9 16 Max in Single Turn 6 | . 1 1 1 1 1 1 . 2 6 Garrison Relay 9 | . . . . 4 . . . 5 . Phase Generator 1 | . . . . . . . . 1 . Machines Repaired . | . . . . . . . . . . Machines Dismantled . | . . . . . . . . . . Machines Sabotaged . | . . . . . . . . . . Overloaded Fab Kills . | . . . . . . . . . . Hacking | -11 -10 -9 -9 -9 -8 -8 -8 -8 -7 --------- Run | Yrd Mat Mat Sto Gar Mat Gar Mat Gar Fac Machines Accessed 20 | . 3 2 4 2 3 2 1 3 . Terminals 15 | . 3 1 3 2 1 2 . 3 . Fabricators . | . . . . . . . . . . Repair Stations . | . . . . . . . . . . Recycling Units . | . . . . . . . . . . Scanalyzers 2 | . . 1 . . 1 . . . . Garrison Access 3 | . . . 1 . 1 . 1 . . Total Hacks 32 | . 7 2 5 3 8 3 1 3 . Successful 18 | . 3 2 4 1 5 . 1 2 . Failed 14 | . 4 . 1 2 3 3 . 1 . Catastrophic 1 | . . . . . . 1 . . . Database Lockouts . | . . . . . . . . . . Manual 3 | . 2 1 . . . . . . . Terminals 23 | . 7 1 4 3 2 3 . 3 . Fabricators . | . . . . . . . . . . Repair Stations . | . . . . . . . . . . Recycling Units . | . . . . . . . . . . Scanalyzers 6 | . . 1 . . 5 . . . . Garrison Access 3 | . . . 1 . 1 . 1 . . Terminal Hacks 11 | . 3 1 3 1 1 . . 2 . Record 1 | . 1 . . . . . . . . Prototype ID Bank 1 | . 1 . . . . . . . . Open Door 4 | . . . 3 . . . . 1 . Branch Access Points 3 | . 1 1 . . 1 . . . . Emergency Access Points 1 | . . . . . . . . 1 . Security Stations 1 | . . . . 1 . . . . . Fabricator Hacks . | . . . . . . . . . . Repair Station Hacks . | . . . . . . . . . . Recycling Unit Hacks . | . . . . . . . . . . Scanalyzer 4 | . . 1 . . 3 . . . . Insert Component 1 | . . . . . 1 . . . . Analyze 1 | . . . . . 1 . . . . Retrieve Study 2 | . . 1 . . 1 . . . . Garrison Access Hacks 3 | . . . 1 . 1 . 1 . . Unlock Access 3 | . . . 1 . 1 . 1 . . Unauthorized Hacks . | . . . . . . . . . . Terminals . | . . . . . . . . . . Fabricators . | . . . . . . . . . . Repair Stations . | . . . . . . . . . . Recycling Units . | . . . . . . . . . . Scanalyzers . | . . . . . . . . . . Garrison Access . | . . . . . . . . . . Data Cores Recovered . | . . . . . . . . . . Used . | . . . . . . . . . . Hacking Detections 14 | . 3 1 2 2 2 2 1 1 . Full Trace Events 1 | . . . . . . 1 . . . Feedback Events . | . . . . . . . . . . Feedback Blocked . | . . . . . . . . . . Robot Schematics Acquired . | . . . . . . . . . . Robots Built . | . . . . . . . . . . Authchips . | . . . . . . . . . . Time . | . . . . . . . . . . Total Robot Build Rating . | . . . . . . . . . . Part Schematics Acquired 1 | . . . . . 1 . . . . Parts Built . | . . . . . . . . . . Authchips . | . . . . . . . . . . Time . | . . . . . . . . . . Total Part Build Rating . | . . . . . . . . . . Part Studies Acquired 1 | . . 1 . . . . . . . Parts Repaired . | . . . . . . . . . . Time . | . . . . . . . . . . Parts Recycled . | . . . . . . . . . . Recycled Matter . | . . . . . . . . . . Retrieved Matter . | . . . . . . . . . . Retrieved Components . | . . . . . . . . . . Parts Scanalyzed 1 | . . . . . 1 . . . . Part Schematics Acquired 1 | . . . . . 1 . . . . Parts Damaged . | . . . . . . . . . . Bothacking | -11 -10 -9 -9 -9 -8 -8 -8 -8 -7 ------------ Run | Yrd Mat Mat Sto Gar Mat Gar Mat Gar Fac Used RIF Installer 4 | . . . . 1 . 1 . 2 . Watcher Feeds 1 | . . . . . . 1 . . . Autooverride 2 | . . . . . . . . 2 . Robots Hacked 7 | . . . . . . . . . 7 Non-combat . | . . . . . . . . . . Combat 7 | . . . . . . . . . 7 Autooverrided 4 | . . . . . . . . . 4 Robot Hacks Applied 3 | . . . . . . . . . 3 overwrite_iff 1 | . . . . . . . . . 1 formatsys_high 2 | . . . . . . . . . 2 Relay Couplers Released 39 | . . . . 16 . . . 23 . Machine Destruction 36 | . . . . 16 . . . 20 . Programmers 3 | . . . . . . . . 3 . Attached 4 | . . . . . . . . 1 3 Fabnet Peak Effective % . | . . . . . . . . . . Robots Rewired 4 | . . . 1 . . . . 3 . Allies Hacked . | . . . . . . . . . . Hacks Repelled . | . . . . . . . . . . Allies | -11 -10 -9 -9 -9 -8 -8 -8 -8 -7 -------- Run | Yrd Mat Mat Sto Gar Mat Gar Mat Gar Fac Total Allies 23 | . . . 10 . . 2 . 4 7 Largest Group 10 | . . . 10 7 . 2 2 3 2 Highest-Rated Group 88 | . . . 88 56 . 64 64 64 32 Highest-Rated Ally 39 | . . . 16 8 . 39 39 39 29 Total Orders 10 | . . . 5 5 . . . . . ROAM 7 | . . . 5 2 . . . . . FOLLOW 3 | . . . . 3 . . . . . Ally Attacks 132 | . . . 39 47 . 3 . 14 29 Total Damage 1379 | . . . 315 370 . 104 . 206 384 Kills 23 | . . . 5 10 . 1 . 3 4 Allies Corrupted . | . . . . . . . . . . Allies Melted . | . . . . . . . . . . Intel | -11 -10 -9 -9 -9 -8 -8 -8 -8 -7 ------- Run | Yrd Mat Mat Sto Gar Mat Gar Mat Gar Fac Active Infowar (turns) 7520 | . . 1145 1583 1230 1446 560 . . 1556 Sensors 7520 | . . 1145 1583 1230 1446 560 . . 1556 Robot Analysis Total . | . . . . . . . . . . Derelict Logs Recovered . | . . . . . . . . . . Drone Launches 8 | . . . 8 . . . . . . Drone Recoveries . | . . . . . . . . . . Exploration | -11 -10 -9 -9 -9 -8 -8 -8 -8 -7 ------------- Run | Yrd Mat Mat Sto Gar Mat Gar Mat Gar Fac Turns Passed 14155 | 80 1091 2664 1583 1846 1448 1026 29 2316 2072 Spaces Moved 6707 | 50 726 1250 680 1023 729 495 17 1062 675 Core 14 | 2 . . . . . . . . 12 Treads 5976 | 38 345 1086 680 1023 729 495 17 1062 501 Legs . | . . . . . . . . . . Wheels 717 | 10 381 164 . . . . . . 162 Hover . | . . . . . . . . . . Flight . | . . . . . . . . . . Fastest Speed 50 | 50 95 95 160 160 160 160 160 160 125 Average Speed 171 | 139 125 174 166 160 176 183 160 185 205 Slowest Speed 900 | 160 160 240 240 160 213 213 160 213 900 Overloaded Moves . | . . . . . . . . . . Propulsion Burnouts . | . . . . . . . . . . Robots Hopped . | . . . . . . . . . . Potential Cave-ins . | . . . . . . . . . . Cave-ins Triggered . | . . . . . . . . . . Exploration Rate (%) 59 | 3 93 93 89 81 52 63 5 94 22 Regions Visited 9 Branch Regions 1 Pre-discovered Areas . | . . . . . . . . . . Known Exits Taken 5 | . 1 1 1 . 1 . 1 . . Unknown Exits Taken 1 | 1 . . . . . . . . . Scrap Searched . | . . . . . . . . . . Spaces Dug 22 | . . . 15 . 4 . . . 3 Terrain Destroyed 706 | . 9 15 41 97 89 3 . 180 272 Melee 15 | . . . 15 . . . . . . Projectile 39 | . . . . . 4 1 . 8 26 AOE 652 | . 9 15 26 97 85 2 . 172 246 Terrain Rammed . | . . . . . . . . . . Walls Destroyed . | . . . . . . . . . . Machines Disabled . | . . . . . . . . . . Actions | -11 -10 -9 -9 -9 -8 -8 -8 -8 -7 --------- Run | Yrd Mat Mat Sto Gar Mat Gar Mat Gar Fac Total 8364 | 57 840 1542 1013 1141 848 557 18 1268 1080 Wait 716 | . 49 126 220 48 48 5 1 48 171 Move 6698 | 49 725 1249 679 1022 728 494 17 1060 675 Hop . | . . . . . . . . . . Pick Up 89 | 2 11 18 6 2 16 3 . 14 17 Fast Attach 44 | 6 4 8 7 . 2 . . 4 13 Attach 41 | . . 4 3 . 7 1 . 7 19 Detach 5 | . . 1 1 . 1 . . . 2 Swap 83 | . 6 16 6 9 10 5 . 17 14 Drop 91 | . 8 22 13 4 10 3 . 14 17 Fire 501 | . 37 98 29 56 26 32 . 77 146 Melee 43 | . . . 43 . . . . . . Ram . | . . . . . . . . . . Kick . | . . . . . . . . . . Crush 6 | . . . . . . . . . 6 Escape Stasis 22 | . . . . . . 14 . 8 . Rewire 21 | . . . 2 . . . . 19 . Trap . | . . . . . . . . . . Miscellaneous 4 | . . . 4 . . . . . . Route ------- -11/Scrapyard -10/Materials (discovered 5 exits: *Mat x3 / *Min x2) -9/Materials (discovered 6 exits: *Mat x3 / *Min x2 / *Sto) -9/Storage (discovered 2 exits: *Mat / Gar) -9/Garrison (discovered 3 exits: *Mat x3) -8/Materials (discovered 2 exits: *Fac / Gar) -8/Garrison (discovered 3 exits: *Mat x3) -8/Materials -8/Garrison (discovered 3 exits: *Fac x3) -7/Factory History --------- Turn | Location | Event 14 | -11/Scrapyard | Discovered new exit (range 15) 81 | -11/Scrapyard | Entered Materials 316 | -10/Materials | Build established: Mutant 415 | -10/Materials | Discovered new exit (range 16) 543 | -10/Materials | Discovered new exit (range 14) 809 | -10/Materials | Discovered new exit (range 14) 842 | -10/Materials | Identified exit to Materials 978 | -10/Materials | Discovered exit to Materials (range 11) 1012 | -10/Materials | Identified exit to Mines 1172 | -10/Materials | Entered another Materials area 1172 | -9/Materials | Evolved 2 slots: Utility x2 1644 | -9/Materials | Identified exit to Mines 1644 | -9/Materials | Identified exit to Storage 1770 | -9/Materials | Discovered new exit (range 3) 1976 | -9/Materials | Build established: Scavenger-Mutant 2509 | -9/Materials | Discovered new exit (range 7) 3522 | -9/Materials | Discovered new exit (range 10) 3836 | -9/Materials | Entered Storage 4167 | -9/Storage | Build established: Mutant 4233 | -9/Storage | Core integrity fell below 50% 4402 | -9/Storage | Discovered new exit (range 13) 4493 | -9/Storage | Core integrity fell below 20% 4682 | -9/Storage | Lost 4 allies 4901 | -9/Storage | Assisted by bots powering up and referring to "LRC-V3" 5157 | -9/Storage | Met 01-MTF 5199 | -9/Storage | Build established: Commander-Mutant 5358 | -9/Storage | Identified exit to Garrison 5419 | -9/Storage | Entered Garrison 5419 | -9/Garrison | Accompanied by 8 allies (01-MTF) 5422 | -9/Garrison | 01-MTF left 5475 | -9/Garrison | Triggered checkpoint 5493 | -9/Garrison | Triggered checkpoint 5493 | -9/Garrison | Triggered checkpoint 5529 | -9/Garrison | Lost 3 allies 5543 | -9/Garrison | Triggered checkpoint 5621 | -9/Garrison | Triggered checkpoint 5641 | -9/Garrison | Garrison Relay disabled 5713 | -9/Garrison | Triggered checkpoint 5779 | -9/Garrison | Discovered new exit (range 10) 5791 | -9/Garrison | Identified exit to Materials 5821 | -9/Garrison | Triggered checkpoint 6032 | -9/Garrison | Build established: Mutant 6188 | -9/Garrison | Discovered exit to Materials (range 10) 6295 | -9/Garrison | Garrison Relay disabled 6313 | -9/Garrison | Garrison Relay disabled 6480 | -9/Garrison | Learned Materials security intel 6787 | -9/Garrison | Discovered exit to Materials (range 10) 6858 | -9/Garrison | Garrison Relay disabled 7041 | -9/Garrison | Installed Relay Interface Framework 7265 | -9/Garrison | Entered Materials 7265 | -8/Materials | Evolved 2 slots: Propulsion x1, Utility x1 7413 | -8/Materials | Destroyed 9 combat bots 7775 | -8/Materials | Met 7R-MNS 8061 | -8/Materials | Discovered new exit (range 7) 8601 | -8/Materials | Identified exit to Factory 8709 | -8/Materials | Identified exit to Garrison 8713 | -8/Materials | Entered Garrison 8919 | -8/Garrison | Triggered checkpoint 9011 | -8/Garrison | Triggered checkpoint 9111 | -8/Garrison | Discovered new exit (range 15) 9141 | -8/Garrison | Identified exit to Materials 9262 | -8/Garrison | Triggered checkpoint 9304 | -8/Garrison | Lost 3 parts (1n2u) 9381 | -8/Garrison | Discovered exit to Materials (range 8) 9539 | -8/Garrison | Triggered checkpoint 9608 | -8/Garrison | Discovered exit to Materials (range 14) 9623 | -8/Garrison | Expanded RIF knowledge: Watcher Feeds 9684 | -8/Garrison | Rescued a captive Derelict 9684 | -8/Garrison | Rescued a captive Derelict 9739 | -8/Garrison | Entered Materials 9739 | -8/Materials | Accompanied by 2 allies 9768 | -8/Materials | Identified exit to Garrison 9768 | -8/Materials | Entered Garrison 9768 | -8/Garrison | Accompanied by 2 allies 9788 | -8/Garrison | Triggered checkpoint 9837 | -8/Garrison | Garrison Relay disabled 9955 | -8/Garrison | Phase Generator disabled 10034 | -8/Garrison | P-60 Hacker assimilated allied 2A-U12(h) 10300 | -8/Garrison | Triggered checkpoint 10420 | -8/Garrison | Rescued a captive Derelict 10517 | -8/Garrison | Discovered exit to Factory (range 10) 10520 | -8/Garrison | Triggered checkpoint 10541 | -8/Garrison | Core integrity fell below 50% 10764 | -8/Garrison | Triggered checkpoint 11089 | -8/Garrison | Discovered exit to Factory (range 12) 11099 | -8/Garrison | Destroyed 7 combat bots 11100 | -8/Garrison | Expanded RIF knowledge: Autooverride 11112 | -8/Garrison | Build established: Bothacker-Mutant 11129 | -8/Garrison | Garrison Relay disabled 11257 | -8/Garrison | Triggered checkpoint 11398 | -8/Garrison | Discovered exit to Factory (range 10) 11486 | -8/Garrison | Garrison Relay disabled 11520 | -8/Garrison | Triggered checkpoint 11576 | -8/Garrison | Triggered checkpoint 11585 | -8/Garrison | Core integrity fell below 20% 11654 | -8/Garrison | Expanded RIF knowledge: Autooverride 12039 | -8/Garrison | Garrison Relay disabled 12084 | -8/Garrison | Entered Factory 12084 | -7/Factory | Accompanied by 2 allies 12084 | -7/Factory | Evolved 2 slots: Utility x1, Weapon x1 12484 | -7/Factory | First assault squad dispatched 12590 | -7/Factory | Build established: Bothacker-Skirmisher 13076 | -7/Factory | Lost 3 parts (2n1u) 13815 | -7/Factory | Lost 5 parts (1p1n3w) 13953 | -7/Factory | High security lockdown imminent 13984 | -7/Factory | Lost 3 parts (1p2w) 13993 | -7/Factory | Core integrity fell below 50% 13997 | -7/Factory | Core integrity fell below 20% 14003 | -7/Factory | System corruption reached 10% 14020 | -7/Factory | Build established: Bothacker-Mutant 14033 | -7/Factory | High security lockdown engaged 14033 | -7/Factory | Lost 5 parts (1n3u1w) 14156 | -7/Factory | Destroyed by L-41 Fighter with Axe Last Messages --------------- Rerouting network defenses. Erasing system data. Installing primary routines, ETC: 6. 14122_ L-41 Fighter sneak attacks. 14124_ Trooper 4a destroyed. 14126_ Jacked G-50 Soldier... >>overwrite_iff Rewriting IFF filter. 14128_ G-47 Trooper suffers critical hit (Burn). 14130_ G-50 Soldier Carbon-fiber Leg severed. 14131_ Subcomponent Replicator disabled. 14136_ G-50 Soldier destroyed. 14138_ System corrupted: Matter fused (-6). 14153_ ALERT: Assault forces dispatched. 14155_ C-45 Heavy ARC bursts open, deploying its payload. 14155_ H-55 Commando unfolds itself. 14155_ P-60 Hacker unfolds itself. 14155_ M-28 Smith unfolds itself. 14155_ Slug penetrates Wall. 14156_ Lgt. Treads+ destroyed. Map ----- +----------------------------------------------------+ | ?????????????????????????????????????????????????? | | ?????????????????????????????????????????????????? | | ???????????????????????? ??????????????????????? | | ???????????????????????? ? ??????????????????? | | ???????????????????????? ????????????????? | | ???????????????????????? ""???????????????? | | ???????????????????????? ???????????????? | | ???????????????????????? """"?????????????? | | ???????????????????????? ?????????????? | | ???????????????????????# "????????????? | | ???????????????????????# "????????????? | | ?????????????????####??# ????????????? | | ????????????????? ?# ?????????????? | | ????????????????? """ ?# ^ ] #????????????? | | ??????????????? ""F"" # ^ #????????????? | | ??????????????# "" "" # g""""" ##???????????? | | ??????????????# i """"" "#???????????? | | ??????????????# """ # "" [ #????????????? | | ??????????????? """ # =%%= #????????????? | | ??????????????? """ ?# =*! #????????????? | | ???????????????? ?# ###+####????????????? | | ????????????????#/###??# ; #?????????? | | ????????????????#??????# # #?????????? | | ???????????????????????# #?? ??????????? | | ??????????????????????## #????!! ??????????? | | ??????????##### ??###?#;l@ #?????? ???????????? | | ??????????# # #???????????????????? | | ??????????# "" # #???????????????????? | | ??????????# """?# #???????????????????? | | ??????????# S" # #???????????????????? | | ????????????? """ # #???????????????????? | | ????????????? """ + mh #???####????????????? | | ????????????? """ # h%p#?? ???????????? | | ??????????? # #? ! ???????????? | | ??????????# !!! """ ?# # ????????????? | | ??????????# !!! """ ?# # ?????????????? | | ??????????# !! """??# + ???????????????? | | ??????????# ??# # ????????????????? | | ????????????????######## + ??????????????????? | | ????????????????# # ## #???????????????????? | | ??????????????### # #???????????????????? | | ??????????????# #???????????????????? | | ??????????????# # #???????????????????? | | ??????????????# #???????????????????? | | ??????????????# # ##??????????????????? | | ??????????????# " "#####??????????????? | | ??????????????# " +??????????????? | | ??????????????### " # " ###??????????????? | | ????????????????### " #????????????????? | | ???????????????## ## " " #????????????????? | +----------------------------------------------------+ Best States ------------- Heat Dissipation 48 Coolant Potential 65 Energy Generation 18 Energy Capacity 300 Matter Stores 300 Matter Capacity 300 Sight Range 16 Robot Scan Range 15 Terrain Scan Density 10 Armor Coverage 225 Evasion (%) 44 Targeting Accuracy 5 Core Analysis 6 Recoil Reduction 3 Defensive Hacking 10 Relay Coupler Types 3 Relay Coupler Value 58 Authchip Count 2 Item Schematics ----------------- Hcp. Storage Unit | -8/Materials | Scanalyzed Robot Schematics ------------------ None Fabricated ------------ Nothing Repaired ---------- Nothing Studied --------- Lgt. Treads | -9/Materials | Hacked Alien Tech Used ----------------- None Achievements -------------- Mindtrick Overwhelming Part-time Excavator You Will Be Upgraded Challenges ------------ None Game ------ Seed FusionThunderWheel Manual? 0 Play Time 01:41:53 Cumulative 100.5 hours Start 2025.11.03 @ 02:25:00 End 2025.11.03 @ 04:12:02 Sessions 1 Manual Loads 0 Difficulty Rogue Special Mode None Game No. 136 Rogue 136 Adventurer 0 Explorer 0 Win Type - Total 1 Types 1/0/0/0/0/0/0/0/0/0 Lore% 29 Gallery% 44 Achievement% 29 Wizard Run 0 Options --------- Layout 0 ASCII 0 Keyboard 0 Movement Mouse Keybinds 0 Fullscreen 1 Font 18/Smallcaps Map View 76x50 Zoom Use 0% Tactical HUD 1 Map Filters NONE Filters NONE Steam 1 RUN: 6ae633c8-f7cc-47b1-8c94-9433a85331a6